bitfinex/quotes_BTCUSD_20240901
["timestamp","ask_amount","ask_price","bid_price","bid_amount"]
[1725230266707,0.347766,57510.0,57505.0,0.0008998]
[1725230266939,0.54896972,57506.0,57505.0,0.0008998]
[1725230267176,0.02728672,57506.0,57505.0,0.0008998]
[1725230267400,0.54896972,57506.0,57505.0,0.0008998]
[1725230267648,0.20118072,57506.0,57505.0,0.0008998]
[1725230269003,0.02728672,57506.0,57505.0,0.4842948]
[1725230269248,0.02728672,57506.0,57505.0,0.3103968]
[1725230269457,0.000818,57515.0,57514.0,0.521611]
[1725230269688,0.000818,57515.0,57514.0,0.30947]
[1725230269902,0.000818,57515.0,57514.0,1.352693]
[1725230270121,0.000818,57515.0,57514.0,1.72924095]
[1725230270341,0.000818,57515.0,57514.0,1.37949995]
[1725230270802,0.000818,57515.0,57514.0,1.24423065]
[1725230271271,0.000818,57515.0,57514.0,1.70157165]
[1725230271721,0.000818,57515.0,57514.0,1.70657165]
[1725230271937,0.000818,57515.0,57514.0,1.72957165]
[1725230272174,0.000818,57515.0,57514.0,2.08731265]
[1725230272425,0.000818,57515.0,57514.0,2.25586429]
[1725230273621,0.173762,57550.0,57544.0,0.173778]
[1725230273851,0.173762,57550.0,57534.0,0.60312]
[1725230273852,0.173792,57540.0,57534.0,0.429309]
[1725230274094,0.173792,57540.0,57534.0,0.318909]
[1725230274340,0.347571,57543.0,57534.0,0.1451]
[1725230274580,0.347571,57543.0,57535.0,0.173805]
[1725230274794,0.347571,57543.0,57527.0,0.005]
[1725230274795,0.671886,57542.0,57527.0,0.1451]
[1725230275035,0.173798,57538.0,57531.0,0.50540786]
[1725230275273,0.173798,57538.0,57533.0,0.173812]
[1725230275744,0.347578,57541.0,57529.0,0.347649]
[1725230275965,0.1,57548.0,57529.0,0.347649]
[1725230275966,0.00096572,57545.0,57529.0,0.03253841]
[1725230276219,0.347597,57538.0,57529.0,0.03253841]
[1725230276460,0.17382,57531.0,57530.0,0.02208425]
[1725230276695,0.1,57547.0,57530.0,0.19590625]
[1725230276696,0.173805,57536.0,57530.0,0.19590625]
[1725230276930,0.173805,57536.0,57530.0,0.173822]
[1725230277222,0.02727188,57542.0,57531.0,0.02555513]
[1725230277476,0.173802,57537.0,57531.0,0.0220789]
[1725230277730,0.173816,57532.0,57531.0,0.0220789]
[1725230277966,0.1168,57544.0,57524.0,0.1451]
[1725230278203,0.347574,57542.0,57524.0,0.1451]
[1725230278449,0.841105,57541.0,57525.0,0.07158884]
[1725230278723,0.807658,57540.0,57517.0,0.1426]
[1725230278971,0.347662,57527.0,57526.0,0.02210563]
[1725230279203,0.173838,57525.0,57518.0,0.19600541]
[1725230279427,0.173841,57524.0,57519.0,0.11965919]
[1725230279642,0.173841,57524.0,57519.0,0.31565726]
[1725230279850,0.173837,57525.0,57520.0,0.173851]
[1725230280058,0.173837,57525.0,57519.0,0.14180226]
[1725230280059,0.347668,57526.0,57519.0,0.02214307]
[1725230280274,0.02727604,57523.0,57517.0,0.38187865]
[1725230280501,0.173855,57520.0,57517.0,0.38187865]
[1725230280947,0.173858,57518.0,57517.0,0.1426]
[1725230281195,0.347707,57520.0,57512.0,0.38187865]
[1725230281411,0.173859,57518.0,57512.0,0.55575365]
[1725230281675,0.347707,57520.0,57512.0,0.55575365]
[1725230281676,0.173861,57517.0,57512.0,0.55575365]
[1725230281920,0.347694,57522.0,57512.0,0.1426]
[1725230282131,0.347694,57522.0,57505.0,0.0008998]
[1725230282132,0.521683,57506.0,57505.0,0.0008998]
[1725230282353,0.173894,57506.0,57505.0,0.0008998]
[1725230282570,0.869472,57506.0,57505.0,0.0008998]
[1725230283020,0.521683,57506.0,57505.0,0.0008998]
[1725230283465,0.20117702,57506.0,57505.0,0.0008998]
[1725230283680,0.02728302,57506.0,57505.0,0.0008998]
[1725230284196,0.1,57521.0,57505.0,0.03240015]
[1725230284421,0.347729,57516.0,57509.0,0.173884]
[1725230284652,0.1,57521.0,57505.0,0.0008998]
[1725230284653,0.347736,57515.0,57506.0,0.173894]
[1725230284914,0.347736,57515.0,57505.0,0.0008998]
[1725230284915,0.347747,57514.0,57505.0,0.0008998]
[1725230285168,0.521683,57506.0,57505.0,0.0008998]
[1725230285606,0.869472,57506.0,57505.0,0.0008998]
[1725230285824,0.521683,57506.0,57505.0,0.0008998]
[1725230286742,0.347731,57516.0,57505.0,0.0008998]
[1725230286964,0.1,57519.0,57512.0,0.143]
[1725230287205,0.3476,57538.0,57519.0,0.173852]
[1725230287206,0.173841,57524.0,57519.0,0.173852]
[1725230287443,0.173845,57523.0,57515.0,0.347733]
[1725230287638,0.34767,57526.0,57520.0,0.02213772]
[1725230287866,0.1154,57529.0,57516.0,0.173863]
[1725230287867,0.347681,57524.0,57516.0,0.173863]
[1725230288071,0.347681,57524.0,57512.0,0.143]
[1725230288072,0.347664,57527.0,57520.0,0.173852]
[1725230288294,0.1154,57529.0,57521.0,0.02213237]
[1725230288295,0.173848,57522.0,57521.0,0.02213237]
[1725230288501,0.1154,57529.0,57512.0,0.143]
[1725230288701,0.173859,57518.0,57513.0,0.02217516]
[1725230288938,0.347691,57523.0,57513.0,0.02217516]
[1725230289144,0.17387,57514.0,57513.0,0.02217516]
[1725230289559,1.158406,57514.0,57513.0,0.02217516]
[1725230289771,0.173894,57506.0,57501.0,0.173908]
[1725230289995,0.173894,57506.0,57500.0,0.1388]
[1725230289996,0.521683,57506.0,57500.0,0.1388]
[1725230290192,0.521683,57506.0,57505.0,0.02311776]
[1725230290193,0.869472,57506.0,57505.0,0.02311776]
[1725230290484,1.83611823,57506.0,57505.0,0.0008998]
[1725230290697,2.45197543,57506.0,57505.0,0.0008998]
[1725230291112,2.56477543,57506.0,57505.0,0.0008998]
[1725230291574,2.53040723,57506.0,57505.0,0.0008998]
[1725230292152,2.5511982,57506.0,57505.0,0.0008998]
[1725230292415,2.5531982,57506.0,57505.0,0.0008998]
[1725230292617,2.55212505,57506.0,57505.0,0.0008998]
[1725230293031,2.25666005,57506.0,57505.0,0.0008998]
[1725230293239,2.07230808,57506.0,57505.0,0.0008998]
[1725230293705,0.52060985,57506.0,57505.0,0.0008998]
[1725230294142,0.86839885,57506.0,57505.0,0.0008998]
[1725230294791,0.52060985,57506.0,57505.0,0.0008998]
[1725230295005,0.86839885,57506.0,57505.0,0.0008998]
[1725230295426,1.92867185,57506.0,57505.0,0.0008998]
[1725230295636,1.21618785,57506.0,57505.0,0.0008998]
[1725230295843,1.95777885,57506.0,57505.0,0.0008998]
[1725230296054,2.05777885,57506.0,57505.0,0.0008998]
[1725230296267,2.55747053,57506.0,57505.0,0.0008998]
[1725230296721,2.92104894,57506.0,57505.0,0.0008998]
[1725230296991,2.51486785,57506.0,57505.0,0.0008998]
[1725230297213,2.53065727,57506.0,57505.0,0.0008998]
[1725230297462,2.18831185,57506.0,57505.0,0.0008998]
[1725230298128,2.31662985,57506.0,57505.0,0.0008998]
[1725230298360,2.30591407,57506.0,57505.0,0.0008998]
[1725230299010,2.32709335,57506.0,57505.0,0.0008998]
[1725230299247,2.91863785,57506.0,57505.0,8e-07]
[1725230299466,2.91863785,57506.0,57478.0,0.1475]
[1725230299467,3.1100629,57505.0,57478.0,0.1475]
[1725230299680,3.1100629,57505.0,57504.0,7e-07]
[1725230299681,3.98464461,57505.0,57504.0,7e-07]
[1725230299888,3.98464461,57505.0,57476.0,0.0008998]
[1725230299889,1.367043,57488.0,57476.0,0.0008998]
[1725230300138,3.725377,57488.0,57476.0,0.0008998]
[1725230300557,3.74116003,57488.0,57476.0,0.0008998]
[1725230300800,1.217877,57477.0,57476.0,0.0008998]
[1725230301004,1.566877,57477.0,57476.0,0.0008998]
[1725230301204,2.757168,57477.0,57476.0,0.02327301]
[1725230301458,2.757168,57477.0,57476.0,0.0008998]
[1725230301682,2.759168,57477.0,57476.0,0.0008998]
[1725230303194,2.764168,57477.0,57476.0,0.0008998]
[1725230303621,2.759168,57477.0,57476.0,0.0008998]
[1725230303845,2.533913,57477.0,57476.0,0.0008998]
[1725230305002,2.44855345,57477.0,57476.0,0.0008998]
[1725230305483,2.286933,57477.0,57476.0,0.0008998]
[1725230305941,2.31964282,57477.0,57476.0,0.0008998]
[1725230306643,2.67260782,57477.0,57476.0,0.0008998]
[1725230307325,3.13445643,57477.0,57476.0,8e-07]
[1725230307563,2.4290228,57477.0,57476.0,8e-07]
[1725230308031,2.7769878,57477.0,57476.0,8e-07]
[1725230308248,2.74824709,57477.0,57476.0,8e-07]
[1725230308462,2.7769864,57477.0,57476.0,8e-07]
[1725230308722,2.78995019,57477.0,57476.0,8e-07]
[1725230308952,2.77698773,57477.0,57476.0,8e-07]
[1725230309397,2.17897,57466.0,57459.0,0.50540786]
[1725230309627,2.17897,57466.0,57455.0,0.008987]
[1725230309628,3.9036509,57466.0,57465.0,1e-06]
[1725230309846,3.94242612,57466.0,57465.0,1.4e-07]
[1725230310071,3.94242612,57466.0,57455.0,0.008987]
[1725230310072,1.332322,57456.0,57455.0,1.4e-07]
[1725230310326,0.522138,57456.0,57455.0,1.4e-07]
[1725230310555,0.87023,57456.0,57455.0,1.4e-07]
[1725230310798,0.522138,57456.0,57455.0,1.4e-07]
[1725230311509,0.348069,57460.0,57455.0,1.4e-07]
[1725230311776,0.1,57466.0,57456.0,0.1387]
[1725230311777,0.274031,57461.0,57456.0,0.1387]
[1725230312012,0.002,57479.0,57457.0,0.14205442]
[1725230312274,0.114,57481.0,57458.0,0.0034805]
[1725230312489,0.174005,57470.0,57459.0,0.312735]
[1725230312730,0.347987,57474.0,57459.0,0.312735]
[1725230312731,0.174007,57469.0,57460.0,0.00348029]
[1725230312973,0.173996,57473.0,57462.0,0.1387]
[1725230313200,0.347978,57475.0,57462.0,0.1387]
[1725230313201,0.174002,57471.0,57462.0,0.1387]
[1725230313456,0.347948,57480.0,57464.0,0.1387]
[1725230313701,0.002,57493.0,57474.0,0.1091]
[1725230313702,0.347869,57493.0,57474.0,0.1091]
[1725230313939,0.03487163,57494.0,57474.0,0.1091]
[1725230313940,0.173977,57479.0,57474.0,0.1091]
[1725230314179,0.644244,57492.0,57475.0,0.01863988]
[1725230314180,0.347891,57490.0,57475.0,0.01863988]
[1725230314407,0.173961,57484.0,57475.0,0.01863988]
[1725230314619,0.03487163,57492.0,57476.0,0.45075114]
[1725230314873,0.114,57499.0,57476.0,0.45075114]
[1725230314874,0.347895,57489.0,57476.0,0.45075114]
[1725230315125,0.114,57499.0,57476.0,0.45075114]
[1725230315126,0.173978,57479.0,57477.0,0.01862917]
[1725230315368,0.347918,57485.0,57477.0,0.01862917]
[1725230315603,0.173973,57480.0,57477.0,0.01862917]
[1725230315819,0.173974,57480.0,57477.0,0.01862917]
[1725230316042,0.173982,57477.0,57476.0,0.1465]
[1725230316252,0.173977,57479.0,57476.0,0.1465]
[1725230316463,0.173975,57480.0,57476.0,0.1465]
[1725230316670,0.347917,57485.0,57476.0,0.1465]
[1725230316671,0.173976,57479.0,57476.0,0.1465]
[1725230317125,0.173969,57482.0,57476.0,0.1465]
[1725230317354,0.173967,57482.0,57476.0,0.1465]
[1725230317568,0.347901,57488.0,57477.0,0.01862917]
[1725230317777,0.347921,57485.0,57477.0,0.01862917]
[1725230317991,0.347927,57484.0,57476.0,0.1465]
[1725230318232,0.173979,57478.0,57476.0,0.1465]
[1725230318458,0.173982,57477.0,57476.0,0.1465]
[1725230318681,0.173982,57477.0,57463.0,0.36822794]
[1725230318682,0.173994,57474.0,57466.0,0.1191]
[1725230318890,0.173994,57473.0,57466.0,0.293113]
[1725230319139,0.347985,57474.0,57466.0,0.1191]
[1725230319343,0.174004,57470.0,57466.0,0.1191]
[1725230319579,0.02729859,57477.0,57466.0,0.1191]
[1725230319580,0.347991,57473.0,57466.0,0.1191]
[1725230319813,0.347971,57476.0,57466.0,0.1191]
[1725230320097,0.173996,57473.0,57466.0,0.1191]
[1725230320305,0.02730165,57472.0,57467.0,0.1455]
[1725230320515,0.174004,57470.0,57467.0,0.1455]
[1725230320818,0.02730165,57472.0,57467.0,0.1455]
[1725230321006,0.174005,57470.0,57467.0,0.1455]
[1725230321226,0.02730165,57472.0,57467.0,0.1455]
[1725230321451,0.02730165,57472.0,57468.0,0.19268638]
[1725230321666,0.02730165,57472.0,57468.0,0.01867738]
[1725230321901,0.02730165,57472.0,57470.0,0.174001]
[1725230322343,0.02730165,57472.0,57471.0,0.01866131]
[1725230323014,0.02730165,57472.0,57467.0,0.1455]
[1725230323015,0.174009,57468.0,57467.0,0.1455]
[1725230323264,0.174009,57468.0,57462.0,0.0008998]
[1725230323265,0.522075,57463.0,57462.0,0.0008998]
[1725230323501,1.419972,57463.0,57462.0,0.0008998]
[1725230323737,0.1,57471.0,57462.0,0.0008998]
[1725230323961,0.1,57471.0,57462.0,0.1749278]
[1725230323962,0.02730671,57463.0,57462.0,0.1749278]
[1725230324225,0.20133171,57463.0,57462.0,0.0008998]
[1725230324458,0.522075,57463.0,57462.0,0.0008998]
[1725230324726,0.54937977,57463.0,57462.0,0.0008998]
[1725230324942,0.870125,57463.0,57462.0,0.0008998]
[1725230325400,2.005093,57463.0,57462.0,0.0008998]
[1725230325689,0.522075,57463.0,57462.0,0.0008998]
[1725230325927,0.174025,57463.0,57462.0,0.0008998]
[1725230326156,0.348009,57470.0,57462.0,0.0008998]
[1725230326367,0.347967,57477.0,57463.0,0.1369]
[1725230326368,0.347977,57476.0,57463.0,0.1369]
[1725230326591,0.347961,57478.0,57463.0,0.1369]
[1725230326801,0.173995,57473.0,57464.0,0.17402]
[1725230327026,0.173995,57473.0,57465.0,0.1136]
[1725230327465,0.17399,57475.0,57465.0,0.11708]
[1725230327707,0.17399,57475.0,57466.0,0.174013]
[1725230327905,0.173987,57476.0,57467.0,0.17749184]
[1725230328117,0.347971,57476.0,57465.0,0.287617]
[1725230328400,0.472594,57489.0,57465.0,0.1136]
[1725230328401,0.173997,57473.0,57465.0,0.1136]
[1725230328617,0.347938,57482.0,57470.0,0.174002]
[1725230328838,0.347921,57485.0,57474.0,0.1475]
[1725230329125,0.173966,57483.0,57474.0,0.1475]
[1725230329363,0.01815929,57490.0,57474.0,0.32149]
[1725230329364,0.0272995,57480.0,57474.0,0.32149]
[1725230329806,0.0272995,57480.0,57479.0,0.521929]
[1725230330016,0.0272995,57480.0,57479.0,0.79276529]
[1725230330975,0.0272995,57480.0,57479.0,0.1475]
[1725230331183,0.0272995,57480.0,57479.0,0.321476]
[1725230331416,0.2012725,57480.0,57479.0,0.1475]
[1725230331870,0.0272995,57480.0,57479.0,0.1475]
[1725230332112,0.0272995,57480.0,57479.0,0.19439702]
[1725230332350,0.0272995,57480.0,57479.0,0.669429]
[1725230332605,0.0272995,57480.0,57479.0,1.017382]
[1725230332846,0.0272995,57480.0,57479.0,0.1475]
[1725230333056,0.0272995,57480.0,57479.0,0.669429]
[1725230333263,0.0272995,57480.0,57479.0,1.017382]
[1725230334176,0.0272995,57480.0,57479.0,0.669429]
[1725230334624,0.173941,57491.0,57482.0,0.173964]
[1725230334838,0.173943,57490.0,57480.0,0.23973003]
[1725230335049,0.173944,57490.0,57480.0,0.23973003]
[1725230335272,0.1,57495.0,57479.0,0.1475]
[1725230335529,0.173973,57481.0,57479.0,0.1475]
[1725230335752,0.03760268,57497.0,57479.0,0.1475]
[1725230335753,0.347934,57483.0,57479.0,0.1475]
[1725230335977,0.173971,57481.0,57479.0,0.1475]
[1725230336198,0.03760268,57497.0,57475.0,0.1453]
[1725230336199,0.1122,57487.0,57475.0,0.1453]
[1725230336423,0.1122,57487.0,57470.0,0.1086]
[1725230336424,0.543453,57486.0,57470.0,0.1453]
[1725230336641,0.173981,57478.0,57476.0,0.01863452]
[1725230336861,0.173974,57480.0,57470.0,0.1453]
[1725230337089,0.521938,57478.0,57477.0,0.01862917]
[1725230337359,0.521938,57478.0,57470.0,0.1453]
[1725230337360,0.522001,57471.0,57470.0,0.1453]
[1725230337564,0.174,57471.0,57470.0,0.1453]
[1725230337792,0.174,57471.0,57470.0,0.16396667]
[1725230338023,0.522001,57471.0,57470.0,0.1453]
[1725230338252,0.174,57471.0,57470.0,0.16396667]
[1725230338951,0.37528701,57474.0,57470.0,0.16396667]
[1725230338952,0.02730101,57474.0,57470.0,0.16396667]
[1725230339166,0.173995,57473.0,57470.0,0.16396667]
[1725230339636,0.173999,57472.0,57470.0,0.16396667]
[1725230339890,0.02730101,57474.0,57470.0,0.16396667]
[1725230339891,0.174,57471.0,57470.0,0.16396667]
[1725230340096,0.870002,57471.0,57470.0,0.01866667]
[1725230340308,0.02730101,57474.0,57470.0,0.01866667]
[1725230340525,0.02730101,57474.0,57467.0,0.174012]
[1725230340734,0.02730101,57474.0,57471.0,0.01866131]
[1725230340948,0.173997,57472.0,57471.0,0.01866131]
[1725230341175,0.173997,57472.0,57465.0,0.1423]
[1725230341616,0.37528501,57474.0,57466.0,0.0186881]
[1725230341617,0.174012,57467.0,57466.0,0.0186881]
[1725230341844,0.522037,57467.0,57466.0,0.0186881]
[1725230342051,0.522075,57463.0,57460.0,0.1467]
[1725230342478,0.522075,57463.0,57462.0,0.01960933]
[1725230342692,0.870125,57463.0,57462.0,0.0008998]
[1725230343394,1.218175,57463.0,57462.0,0.0008998]
[1725230343648,1.792738,57463.0,57462.0,0.0008998]
[1725230343915,1.218175,57463.0,57462.0,0.0008998]
[1725230344157,1.23395807,57463.0,57462.0,0.0008998]
[1725230344379,1.218175,57463.0,57462.0,0.0008998]
[1725230345085,1.597638,57463.0,57462.0,0.0008998]
[1725230345327,2.06147092,57463.0,57462.0,0.0008998]
[1725230345790,2.33133677,57463.0,57462.0,0.0008998]
[1725230345999,2.37421204,57463.0,57462.0,0.0008998]
[1725230346212,2.37621204,57463.0,57462.0,0.0008998]
[1725230346441,2.37121204,57463.0,57462.0,0.0008998]
[1725230347119,2.33251804,57463.0,57462.0,0.0008998]
[1725230347362,2.33751804,57463.0,57462.0,0.0008998]
[1725230347581,2.68556804,57463.0,57462.0,0.0008998]
[1725230347841,2.69556804,57463.0,57462.0,0.0008998]
[1725230348091,2.33051804,57463.0,57462.0,0.0008998]
[1725230348336,1.45698359,57463.0,57462.0,0.0008998]
[1725230348549,2.288038,57463.0,57462.0,0.0008998]
[1725230348757,2.57302307,57463.0,57462.0,0.0008998]
[1725230349014,1.72056007,57463.0,57462.0,0.0008998]
[1725230349230,3.36637911,57463.0,57462.0,0.0008998]
[1725230349461,3.75029904,57463.0,57462.0,8e-07]
[1725230349689,0.45901007,57463.0,57462.0,8e-07]
[1725230349900,0.174025,57463.0,57462.0,8e-07]
[1725230350399,1.218175,57463.0,57462.0,8e-07]
[1725230350616,1.71304716,57463.0,57462.0,8e-07]
[1725230350912,1.5013796,57463.0,57462.0,8e-07]
[1725230351151,1.334575,57463.0,57462.0,8e-07]
[1725230351506,1.434575,57463.0,57462.0,8e-07]
[1725230351656,0.970125,57463.0,57462.0,8e-07]
[1725230351891,1.318175,57463.0,57462.0,8e-07]
[1725230352136,0.622075,57463.0,57462.0,8e-07]
[1725230352356,0.348028,57467.0,57462.0,8e-07]
[1725230352603,0.20133302,57463.0,57462.0,8e-07]
[1725230352835,0.20133302,57463.0,57462.0,0.1740288]
[1725230352836,0.02812602,57463.0,57462.0,0.1740288]
[1725230353048,0.02812602,57463.0,57462.0,0.3194288]
[1725230353301,0.02812602,57463.0,57462.0,1.11709928]
[1725230353550,0.02812602,57463.0,57462.0,0.2544008]
[1725230353822,0.173911,57501.0,57491.0,0.173939]
[1725230354045,0.50540786,57500.0,57492.0,0.0173939]
[1725230354300,0.347769,57510.0,57483.0,0.1454]
[1725230354301,0.150115,57499.0,57483.0,0.1454]
[1725230354585,0.1381,57504.0,57483.0,0.1454]
[1725230354586,0.173955,57487.0,57483.0,0.1454]
[1725230354800,0.347895,57489.0,57483.0,0.1454]
[1725230355041,0.347875,57492.0,57478.0,0.1454]
[1725230355282,0.1481,57504.0,57486.0,0.20269442]
[1725230355283,0.173932,57494.0,57486.0,0.20269442]
[1725230355496,0.173933,57494.0,57486.0,0.20269442]
[1725230355710,0.347834,57499.0,57486.0,0.20269442]
[1725230355929,0.173938,57492.0,57486.0,0.20269442]
[1725230356147,0.245,57504.0,57478.0,0.1454]
[1725230356148,0.005,57503.0,57478.0,0.1454]
[1725230356360,0.173975,57480.0,57479.0,0.50540786]
[1725230356657,0.14,57491.0,57479.0,0.50540786]
[1725230356658,0.173954,57487.0,57479.0,0.50540786]
[1725230356899,0.14,57496.0,57481.0,0.173967]
[1725230356900,0.173945,57490.0,57481.0,0.173967]
[1725230357112,0.005,57507.0,57481.0,0.173967]
[1725230357113,0.347814,57502.0,57489.0,0.20269442]
[1725230357341,0.14,57504.0,57489.0,0.20269442]
[1725230357342,0.327515,57501.0,57489.0,0.20269442]
[1725230357554,0.347829,57500.0,57489.0,0.20269442]
[1725230357782,0.14,57504.0,57482.0,0.3653257]
[1725230357783,0.173938,57492.0,57483.0,0.173961]
[1725230357983,0.14,57504.0,57490.0,0.01985549]
[1725230357984,0.17393,57495.0,57490.0,0.01985549]
[1725230358217,0.347837,57499.0,57485.0,0.173956]
[1725230358451,0.24,57504.0,57491.0,0.01985014]
[1725230358695,0.409622,57503.0,57488.0,0.173948]
[1725230358910,0.409622,57503.0,57486.0,0.50540786]
[1725230358911,0.173935,57493.0,57486.0,0.50540786]
[1725230359191,0.173919,57498.0,57490.0,0.1378]
[1725230359388,0.000818,57506.0,57491.0,0.46455717]
[1725230359662,0.000818,57506.0,57494.0,0.002]
[1725230359899,0.000818,57506.0,57493.0,0.1378]
[1725230359900,0.000818,57506.0,57496.0,0.1378]
[1725230360114,0.000818,57506.0,57498.0,0.347833]
[1725230360335,0.000818,57506.0,57505.0,1.21018142]
[1725230360565,0.000818,57506.0,57505.0,0.98340456]
[1725230360781,0.000818,57506.0,57505.0,1.00391816]
[1725230361009,0.000818,57506.0,57505.0,1.35171316]
[1725230361242,0.000818,57506.0,57505.0,0.80122374]
[1725230361721,0.000818,57506.0,57505.0,1.26391874]
[1725230361964,0.000818,57515.0,57514.0,0.869352]
[1725230362218,0.000818,57515.0,57514.0,1.76095203]
[1725230362438,0.000818,57515.0,57514.0,1.78210958]
[1725230362867,0.000818,57515.0,57514.0,1.78710958]
[1725230363090,0.000818,57515.0,57514.0,1.81010958]
[1725230363344,0.000818,57515.0,57514.0,1.44136858]
[1725230364218,0.000818,57515.0,57514.0,1.08662758]
[1725230364443,0.000818,57515.0,57514.0,1.09162758]
[1725230364664,0.000818,57515.0,57514.0,0.73888658]
[1725230365121,0.000818,57515.0,57514.0,1.08662758]
[1725230365342,0.174685,57515.0,57514.0,0.02115755]
[1725230365555,0.000818,57515.0,57511.0,0.173878]
[1725230365763,0.000818,57515.0,57514.0,0.02115755]
[1725230365998,0.000818,57515.0,57514.0,0.0034773]
[1725230366259,0.000818,57515.0,57514.0,0.02115755]
[1725230366689,0.52242,57515.0,57514.0,0.02115755]
[1725230366962,0.521692,57505.0,57504.0,0.1424]
[1725230367199,0.173887,57509.0,57502.0,0.1141]
[1725230367439,0.000818,57515.0,57502.0,0.1141]
[1725230367440,0.000818,57515.0,57505.0,0.347792]
[1725230367665,0.173872,57514.0,57507.0,0.17389]
[1725230367899,0.173872,57514.0,57504.0,0.20252383]
[1725230367900,0.000818,57515.0,57504.0,0.1739]
[1725230368132,0.000818,57515.0,57502.0,0.1141]
[1725230368341,0.173886,57509.0,57503.0,0.173902]
[1725230368552,0.465654,57515.0,57506.0,0.173893]
[1725230368553,0.347741,57514.0,57506.0,0.173893]
[1725230368794,0.347741,57514.0,57504.0,0.1739]
[1725230368795,0.347755,57512.0,57504.0,0.1739]
[1725230369013,0.347741,57514.0,57501.0,0.20252383]
[1725230369014,0.347741,57514.0,57503.0,0.173903]
[1725230369235,0.000818,57515.0,57501.0,0.20252383]
[1725230369513,0.174685,57515.0,57507.0,0.347783]
[1725230369744,0.174685,57515.0,57506.0,0.20252383]
[1725230369745,0.000818,57515.0,57506.0,0.20252383]
[1725230369971,0.173875,57513.0,57507.0,0.173891]
[1725230370206,0.173891,57508.0,57502.0,0.173906]
[1725230370436,0.02728098,57513.0,57512.0,0.173876]
[1725230370671,0.02728098,57513.0,57512.0,0.521629]
[1725230370885,0.02728098,57513.0,57512.0,0.173876]
[1725230371124,0.02728098,57513.0,57512.0,0.521629]
[1725230371365,0.02728098,57513.0,57512.0,1.28810643]
[1725230371586,0.000818,57515.0,57512.0,1.28810643]
[1725230371587,0.000818,57515.0,57514.0,0.521611]
[1725230371796,0.000818,57515.0,57514.0,0.869352]
[1725230372231,0.000818,57515.0,57514.0,1.217093]
[1725230372441,0.000818,57515.0,57514.0,1.361693]
[1725230372675,0.000818,57515.0,57514.0,1.55324464]
[1725230372896,0.000818,57515.0,57514.0,1.55124464]
[1725230373608,0.000818,57515.0,57514.0,1.55324464]
[1725230374057,0.000818,57515.0,57514.0,1.55124464]
[1725230375322,0.000818,57515.0,57514.0,1.18050364]
[1725230375779,0.000818,57515.0,57514.0,0.1426]
[1725230376005,0.000818,57515.0,57514.0,0.664211]
[1725230376220,0.000818,57515.0,57514.0,0.31647]
[1725230376438,0.000818,57515.0,57514.0,0.664211]
[1725230376863,0.000818,57515.0,57507.0,0.357781]
[1725230376864,0.000818,57515.0,57507.0,0.20252383]
[1725230377076,0.000818,57515.0,57504.0,0.1426]
[1725230377077,0.347741,57514.0,57504.0,0.1426]
[1725230377562,0.173883,57510.0,57504.0,0.1426]
[1725230377813,0.000818,57515.0,57509.0,0.173884]
[1725230378058,0.174686,57515.0,57509.0,0.00347733]
[1725230378284,0.173872,57514.0,57510.0,0.05537782]
[1725230378531,0.000818,57515.0,57510.0,0.22925882]
[1725230378759,0.17387,57514.0,57510.0,0.05537782]
[1725230378972,0.20114978,57514.0,57510.0,0.05537782]
[1725230379640,0.20114978,57514.0,57508.0,0.00347737]
[1725230379641,0.173874,57513.0,57508.0,0.00347737]
[1725230379904,0.173874,57513.0,57508.0,0.17736537]
[1725230380805,0.02727978,57514.0,57508.0,0.17736537]
[1725230380806,0.02727978,57514.0,57508.0,0.35125337]
[1725230381019,0.02727978,57514.0,57513.0,0.869367]
[1725230381270,0.000818,57515.0,57514.0,0.521611]
[1725230381501,0.000818,57515.0,57514.0,0.54276855]
[1725230381753,0.000818,57515.0,57514.0,1.22352303]
[1725230381981,0.000818,57515.0,57514.0,1.24652303]
[1725230382199,0.000818,57515.0,57514.0,1.24852303]
[1725230382514,0.000818,57515.0,57514.0,1.59426403]
[1725230383229,0.347649,57530.0,57514.0,1.59426403]
[1725230383230,0.00818,57537.0,57536.0,0.2606]
[1725230383449,0.00818,57537.0,57536.0,1.9257507]
[1725230383671,0.00818,57552.0,57551.0,0.37628183]
[1725230383928,0.00818,57552.0,57551.0,0.72379883]
[1725230384163,0.00818,57552.0,57551.0,0.8890468]
[1725230384374,0.00818,57552.0,57551.0,0.5415298]
[1725230384592,0.00818,57552.0,57551.0,0.78191452]
[1725230385024,0.00818,57552.0,57551.0,0.43439752]
[1725230386120,0.00818,57552.0,57551.0,0.92761452]
[1725230386357,0.00818,57552.0,57551.0,1.27513152]
[1725230386601,0.00818,57552.0,57551.0,1.75454852]
[1725230386835,0.00818,57552.0,57551.0,1.94610016]
[1725230387058,0.00818,57556.0,57553.0,1.233267]
[1725230387266,0.00818,57556.0,57553.0,1.749472]
[1725230387475,0.00818,57556.0,57555.0,1.378925]
[1725230387729,0.00818,57556.0,57555.0,1.77094256]
[1725230387964,0.00818,57556.0,57555.0,2.0543942]
[1725230388249,0.00818,57556.0,57555.0,1.7069012]
[1725230390791,0.00818,57556.0,57555.0,1.7019012]
[1725230391006,0.00818,57556.0,57555.0,1.6999012]
[1725230391743,0.00818,57556.0,57555.0,1.7069012]
[1725230391983,0.00818,57556.0,57555.0,1.3244082]
[1725230392445,0.00818,57556.0,57555.0,0.89525656]
[1725230392677,0.00818,57556.0,57555.0,0.02152456]
[1725230393374,0.00818,57556.0,57555.0,0.173746]
[1725230393586,0.00818,57556.0,57555.0,0.02152456]
[1725230394005,0.00818,57556.0,57551.0,0.23909359]
[1725230394006,0.00818,57556.0,57553.0,0.17722664]
[1725230394260,0.00818,57556.0,57555.0,0.71651056]
[1725230394483,0.00818,57556.0,57555.0,0.868732]
[1725230394728,0.00818,57556.0,57555.0,0.89025656]
[1725230394974,0.00818,57556.0,57555.0,0.54276356]
[1725230395680,0.00818,57556.0,57555.0,0.19527056]
[1725230395897,0.00818,57556.0,57555.0,0.02152456]
[1725230396145,0.00818,57556.0,57551.0,0.41285059]
[1725230396146,0.00818,57556.0,57553.0,0.173751]